Workbook

Sheet Титул графика
A1: МИНИСТЕРСТВО ОБРАЗОВАНИЯ САРАТОВСКОЙ ОБЛАСТИ ГОСУДАРСТВЕННОЕ АВТОНОМНОЕ ПРОФЕССИОНАЛЬНОЕ ОБРАЗОВАТЕЛЬНОЕ УЧРЕЖДЕНИЕ САРАТОВСКОЙ ОБЛАСТИ «МАРКСОВСКИЙ ПОЛИТЕХНИЧЕСКИЙ КОЛЛЕДЖ»
AH2: Утверждено в составе ОП
AF4: Якубович В.И.
A5: Одобрено педагогическим советом ГАПОУ СО «МПК» Протокол № 3 от «31» октября 2025 г. | AH5: Директор Е.В. Гребнева Приказ № 338 от 05.11.2025г.
A9: Календарный учебный график
A10: среднего профессионального образования
A11: программы подготовки специалистов среднего звена
A14: 23.02.07 | H14: Техническое обслуживание и ремонт автотранспортных средств
A15: код | H15: наименование специальности
A16: Наименование квалификации специалиста среднего звена: специалист по техническому обслуживанию и ремонту автотранспортных средств
AB17: Наименование направленности: эксплуатация беспилотных авиационных систем
D18: основное общее образование
A19: квалификация: | G19: специалист
G20: 20 7
G21: 21 7
G22: 22 7
G23: 23 7
G24: 24 7
D25: уровень образования, необходимый для приёма на обучение
A27: форма обучения | G27: Очная | P27: срок получения образования по ППССЗ | AC27: 3г 10м | AI27: год начала подготовки по ППССЗ | AS27: 2021 | BF27: 2026
A29: профиль получаемого профессионального образования | U29: технологический
U30: при реализации программы среднего общего образования
A31: Приказ об утверждении ФГОС | L31: от | N31: 2024-07-02 | S31: № | U31: 453

Sheet 1 курс
A2: Индекс | B2: Компоненты программы | C2: 1 курс
C3: 1 семестр | V3: 2 семестр | AT3: Всего часов
C4: Сентябрь | H4: Октябрь | K4: ПН | L4: Ноябрь | O4: ПН | P4: Декабрь | T4: ПН | U4: Январь | X4: ПН | Y4: Февраль | AB4: ПН | AC4: Март | AG4: ПН | AH4: Апрель | AK4: ПН | AL4: Май | AP4: Июнь
C5: Номера календарных недель
C7: Порядковые номера недель учебного процесса
C8: 1 | D8: 2 | E8: 3 | F8: 4 | G8: 5 | H8: 6 | I8: 7 | J8: 8 | K8: 9 | L8: 10 | M8: 11 | N8: 12 | O8: 13 | P8: 14 | Q8: 15 | R8: 16 | S8: 17 | T8: 18 | U8: 19 | V8: 20 | W8: 21 | X8: 22 | Y8: 23 | Z8: 24 | AA8: 25 | AB8: 26 | AC8: 27 | AD8: 28 | AE8: 29 | AF8: 30 | AG8: 31 | AH8: 32 | AI8: 33 | AJ8: 34 | AK8: 35 | AL8: 36 | AM8: 37 | AN8: 38 | AO8: 39 | AP8: 40 | AQ8: 41 | AR8: 42 | AS8: 43
A9: ОУД | B9: Обязательные и дополнительныеучебные дисциплины
A10: ОУД.01 | B10: Русский язык | C10: 2 | E10: 2 | G10: 2 | I10: 2 | K10: 2 | L10: 2 | O10: 2 | P10: 2 | Q10: 2 | R10: 2 | V10: 2 | W10: 2 | Z10: 2 | AA10: 2 | AB10: 2 | AC10: 2 | AE10: 2 | AH10: 2 | AI10: 2 | AK10: 2 | AL10: 2 | AM10: 2 | AN10: 2 | AO10: 2 | AP10: 2 | AQ10: 2 | AR10: 2 | AS10: 18 | AT10: =SUM(C10:AS10) -> 72
A11: ОУД.02 | B11: Литература | C11: 2 | D11: 2 | E11: 2 | F11: 2 | G11: 2 | H11: 2 | I11: 2 | J11: 2 | K11: 2 | L11: 2 | M11: 2 | N11: 2 | O11: 2 | P11: 2 | Q11: 2 | R11: 2 | S11: 2 | V11: 4 | W11: 2 | X11: 4 | Y11: 4 | Z11: 4 | AA11: 4 | AB11: 2 | AC11: 4 | AD11: 2 | AE11: 4 | AF11: 4 | AG11: 4 | AH11: 4 | AI11: 4 | AJ11: 2 | AK11: 4 | AL11: 4 | AM11: 4 | AN11: 4 | AO11: 2 | AP11: 2 | AQ11: 2 | AT11: =SUM(C11:AS11) -> 108
A12: ОУД.03 | B12: Иностранный язык | C12: 2 | D12: 2 | E12: 2 | F12: 2 | G12: 2 | H12: 2 | I12: 2 | J12: 2 | K12: 2 | M12: 2 | N12: 2 | P12: 2 | Q12: 2 | R12: 2 | S12: 2 | V12: 2 | W12: 2 | X12: 2 | Y12: 2 | Z12: 2 | AA12: 2 | AB12: 2 | AC12: 2 | AD12: 2 | AE12: 2 | AF12: 2 | AG12: 2 | AH12: 2 | AI12: 2 | AJ12: 2 | AL12: 2 | AM12: 2 | AN12: 2 | AO12: 2 | AP12: 2 | AQ12: 2 | AT12: =SUM(C12:AS12) -> 72
A13: ОУД.04 | B13: Математика | C13: 10 | D13: 10 | E13: 8 | F13: 10 | G13: 10 | H13: 10 | I13: 10 | J13: 8 | K13: 10 | L13: 10 | M13: 10 | N13: 10 | O13: 10 | P13: 10 | Q13: 10 | R13: 10 | S13: 8 | V13: 6 | W13: 6 | X13: 6 | Y13: 6 | Z13: 6 | AA13: 6 | AB13: 6 | AC13: 6 | AD13: 6 | AE13: 6 | AF13: 6 | AG13: 6 | AH13: 6 | AI13: 6 | AJ13: 6 | AK13: 6 | AL13: 6 | AM13: 6 | AN13: 6 | AO13: 6 | AP13: 6 | AQ13: 8 | AR13: 24 | AS13: 18 | AT13: =SUM(C13:AS13) -> 340
A14: ОУД.05 | B14: История | C14: 2 | D14: 2 | E14: 3 | F14: 2 | G14: 2 | H14: 2 | J14: 2 | K14: 2 | L14: 2 | M14: 2 | N14: 2 | O14: 2 | P14: 2 | Q14: 2 | R14: 2 | V14: 4 | W14: 4 | X14: 4 | Y14: 5 | Z14: 4 | AA14: 6 | AB14: 4 | AC14: 4 | AD14: 6 | AE14: 4 | AF14: 4 | AG14: 6 | AH14: 4 | AI14: 6 | AJ14: 6 | AK14: 4 | AL14: 4 | AM14: 4 | AN14: 4 | AO14: 6 | AP14: 4 | AQ14: 4 | AR14: 4 | AT14: =SUM(C14:AS14) -> 136
A15: ОУД.06 | B15: Физическая культура | C15: 2 | D15: 2 | E15: 2 | F15: 2 | G15: 2 | H15: 2 | I15: 2 | J15: 2 | K15: 2 | L15: 2 | M15: 2 | N15: 2 | O15: 2 | P15: 2 | Q15: 2 | R15: 4 | V15: 2 | W15: 2 | X15: 2 | Y15: 2 | Z15: 2 | AB15: 2 | AC15: 2 | AD15: 2 | AE15: 2 | AF15: 2 | AG15: 2 | AH15: 2 | AJ15: 2 | AK15: 2 | AL15: 2 | AM15: 2 | AN15: 2 | AO15: 4 | AT15: =SUM(C15:AS15) -> 72
A16: ОУД.07 | B16: Основы безопасности и защиты Родины | V16: 4 | W16: 4 | X16: 4 | Y16: 4 | Z16: 2 | AA16: 2 | AB16: 4 | AC16: 2 | AD16: 4 | AE16: 2 | AF16: 4 | AG16: 2 | AH16: 4 | AI16: 2 | AJ16: 4 | AK16: 2 | AL16: 4 | AM16: 2 | AO16: 2 | AP16: 4 | AQ16: 2 | AR16: 4 | AT16: 68
A17: ОУД.08 | B17: Информатика | C17: 8 | D17: 8 | E17: 8 | F17: 8 | G17: 8 | H17: 8 | I17: 8 | J17: 8 | K17: 8 | L17: 8 | M17: 8 | N17: 8 | O17: 6 | P17: 8 | Q17: 8 | R17: 8 | S17: 18 | AT17: =SUM(C17:AS17) -> 144
A18: ОУД.09 | B18: Физика | C18: 2 | D18: 4 | E18: 3 | F18: 2 | G18: 2 | H18: 4 | I18: 4 | J18: 4 | K18: 2 | L18: 2 | M18: 4 | N18: 4 | O18: 4 | P18: 2 | Q18: 2 | R18: 2 | S18: 2 | V18: 4 | W18: 4 | X18: 4 | Y18: 5 | Z18: 4 | AA18: 6 | AB18: 4 | AC18: 4 | AD18: 4 | AE18: 4 | AF18: 4 | AG18: 4 | AH18: 4 | AI18: 6 | AJ18: 4 | AK18: 6 | AL18: 2 | AM18: 4 | AN18: 4 | AO18: 4 | AP18: 4 | AQ18: 6 | AT18: =SUM(C18:AS18) -> 144
A19: ОУД.10 | B19: Химия | C19: 2 | D19: 2 | E19: 2 | F19: 4 | G19: 2 | H19: 2 | I19: 2 | J19: 4 | K19: 2 | L19: 2 | M19: 2 | N19: 2 | O19: 4 | P19: 2 | Q19: 2 | R19: 2 | S19: 2 | V19: 2 | W19: 2 | X19: 2 | Y19: 2 | AB19: 2 | AC19: 2 | AD19: 2 | AE19: 2 | AG19: 2 | AH19: 2 | AI19: 2 | AJ19: 2 | AK19: 2 | AO19: 2 | AP19: 2 | AQ19: 2 | AT19: 72
A20: ОУД.11 | B20: Обществознание | C20: 2 | D20: 2 | E20: 2 | F20: 2 | G20: 2 | H20: 2 | I20: 2 | J20: 2 | K20: 2 | L20: 4 | M20: 2 | N20: 2 | O20: 2 | P20: 2 | Q20: 2 | R20: 2 | V20: 2 | W20: 2 | X20: 2 | Y20: 2 | Z20: 2 | AB20: 2 | AC20: 2 | AD20: 2 | AE20: 2 | AF20: 2 | AG20: 2 | AJ20: 2 | AK20: 2 | AL20: 2 | AM20: 2 | AN20: 4 | AO20: 2 | AP20: 2 | AT20: 72
A21: ОУД.12 | B21: Биология | V21: 2 | W21: 2 | X21: 4 | Y21: 2 | Z21: 4 | AA21: 4 | AB21: 4 | AC21: 2 | AD21: 4 | AE21: 2 | AF21: 4 | AG21: 2 | AH21: 4 | AI21: 2 | AJ21: 4 | AK21: 4 | AL21: 4 | AM21: 4 | AN21: 4 | AO21: 2 | AP21: 4 | AQ21: 4 | AT21: 72
A22: ОУД.13 | B22: География | V22: 2 | W22: 4 | X22: 2 | Y22: 2 | Z22: 4 | AA22: 4 | AB22: 2 | AC22: 4 | AD22: 2 | AE22: 4 | AF22: 4 | AG22: 4 | AH22: 2 | AI22: 4 | AJ22: 2 | AK22: 2 | AL22: 4 | AM22: 4 | AN22: 4 | AO22: 2 | AP22: 4 | AQ22: 4 | AR22: 2 | AT22: 72
A23: ДОД.01 | B23: Выполнение индивидуального проекта (физика) | C23: 2 | D23: 2 | E23: 2 | F23: 2 | G23: 2 | H23: 2 | I23: 2 | J23: 2 | K23: 2 | L23: 2 | M23: 2 | N23: 2 | O23: 2 | P23: 2 | Q23: 2 | S23: 2 | AT23: 32
A24: Всего часов в неделю учебных занятий | C24: =SUM(C10:C23) -> 36 | D24: =SUM(D10:D23) -> 36 | E24: =SUM(E10:E23) -> 36 | F24: =SUM(F10:F23) -> 36 | G24: =SUM(G10:G23) -> 36 | H24: =SUM(H10:H23) -> 36 | I24: =SUM(I10:I23) -> 36 | J24: =SUM(J10:J23) -> 36 | K24: =SUM(K10:K23) -> 36 | L24: =SUM(L10:L23) -> 36 | M24: =SUM(M10:M23) -> 36 | N24: =SUM(N10:N23) -> 36 | O24: =SUM(O10:O23) -> 36 | P24: =SUM(P10:P23) -> 36 | Q24: =SUM(Q10:Q23) -> 36 | R24: =SUM(R10:R23) -> 36 | S24: =SUM(S10:S23) -> 36 | V24: =SUM(V10:V23) -> 36 | W24: 36 | X24: 36 | Y24: 36 | Z24: 36 | AA24: 36 | AB24: 36 | AC24: 36 | AD24: 36 | AE24: 36 | AF24: 36 | AG24: 36 | AH24: 36 | AI24: 36 | AJ24: 36 | AK24: 36 | AL24: 36 | AM24: 36 | AN24: 36 | AO24: 36 | AP24: 36 | AQ24: 36 | AR24: 36 | AS24: 36 | AT24: 1476

Sheet 2 курс
A3: Индекс | B3: Компоненты программы | C3: 2 курс
C4: 3 семестр | V4: 4 семестр | AT4: Всего часов
C5: Сентябрь | G5: ПН | H5: Октябрь | K5: ПН | L5: Ноябрь | P5: Декабрь | T5: ПН | U5: Январь | X5: ПН | Y5: Февраль | AB5: ПН | AC5: Март | AG5: ПН | AH5: Апрель | AK5: ПН | AL5: Май | AP5: Июнь
C6: Номера календарных недель
C8: Порядковые номера недель учебного процесса
C9: 1 | D9: 2 | E9: 3 | F9: 4 | G9: 5 | H9: 6 | I9: 7 | J9: 8 | K9: 9 | L9: 10 | M9: 11 | N9: 12 | O9: 13 | P9: 14 | Q9: 15 | R9: 16 | S9: 17 | T9: 18 | U9: 19 | V9: 20 | W9: 21 | X9: 22 | Y9: 23 | Z9: 24 | AA9: 25 | AB9: 26 | AC9: 27 | AD9: 28 | AE9: 29 | AF9: 30 | AG9: 31 | AH9: 32 | AI9: 33 | AJ9: 34 | AK9: 35 | AL9: 36 | AM9: 37 | AN9: 38 | AO9: 39 | AP9: 40 | AQ9: 41 | AR9: 42 | AS9: 43
A10: СГ.00 | B10: Социально - гуманитарный цикл
A11: СГ.01 | B11: История России | C11: 2 | D11: 4 | E11: 2 | F11: 4 | G11: 2 | H11: 4 | I11: 4 | J11: 4 | K11: 2 | L11: 4 | M11: 4 | N11: 4 | O11: 2 | P11: 4 | Q11: 4 | R11: 4 | S11: 4 | AT11: =SUM(C11:AS11) -> 58
A12: СГ.02 | B12: Иностранный язык в профессиональной деятельности | C12: 2 | D12: 2 | E12: 2 | G12: 2 | H12: 2 | J12: 2 | K12: 2 | L12: 2 | N12: 2 | O12: 2 | Q12: 2 | R12: 2 | S12: 2 | V12: 2 | W12: 2 | Y12: 2 | Z12: 2 | AA12: 2 | AC12: 2 | AD12: 2 | AF12: 2 | AG12: 2 | AI12: 2 | AJ12: 2 | AL12: 2 | AM12: 2 | AS12: 2 | AT12: =SUM(C12:AS12) -> 54
A13: СГ.04 | B13: Физическая культура | C13: 2 | D13: 2 | F13: 2 | G13: 2 | I13: 2 | J13: 2 | K13: 2 | L13: 2 | N13: 2 | O13: 2 | Q13: 2 | R13: 2 | S13: 2 | V13: 2 | W13: 2 | Y13: 2 | Z13: 2 | AA13: 2 | AC13: 2 | AD13: 2 | AF13: 2 | AG13: 2 | AI13: 2 | AJ13: 2 | AL13: 2 | AM13: 2 | AS13: 2 | AT13: =SUM(C13:AS13) -> 54
A14: СГ.05 | B14: Основы бережливого производства | C14: 2 | D14: 2 | E14: 2 | F14: 2 | G14: 2 | H14: 2 | I14: 2 | J14: 2 | K14: 2 | L14: 2 | M14: 2 | N14: 2 | O14: 2 | P14: 4 | Q14: 2 | R14: 2 | S14: 2 | AT14: 36
A15: СГ.06 | B15: Основы финансовой грамотности | C15: 2 | D15: 2 | E15: 2 | F15: 2 | G15: 2 | H15: 2 | I15: 2 | J15: 2 | K15: 2 | L15: 2 | M15: 2 | N15: 2 | O15: 2 | P15: 2 | Q15: 2 | R15: 2 | S15: 4 | AT15: =SUM(C15:AS15) -> 36
A16: ОП.00 | B16: Общепрофессиональный цикл
A17: ОП.01 | B17: Инженерная графика | C17: 4 | D17: 2 | E17: 4 | F17: 4 | G17: 2 | H17: 2 | I17: 4 | J17: 6 | K17: 4 | L17: 2 | M17: 4 | N17: 2 | O17: 4 | P17: 2 | Q17: 2 | R17: 2 | S17: 4 | V17: 4 | W17: 4 | X17: 4 | Y17: 4 | Z17: 2 | AA17: 4 | AB17: 4 | AC17: 4 | AD17: 4 | AE17: 4 | AF17: 4 | AG17: 4 | AH17: 4 | AI17: 2 | AJ17: 4 | AK17: 2 | AL17: 2 | AM17: 4 | AP17: 4 | AT17: 122
A18: ОП.02 | B18: Техническая механика | C18: 4 | D18: 4 | E18: 4 | F18: 4 | G18: 4 | H18: 4 | I18: 4 | J18: 4 | K18: 4 | L18: 4 | M18: 6 | N18: 4 | O18: 4 | P18: 4 | Q18: 4 | R18: 4 | S18: 4 | V18: 4 | W18: 4 | X18: 4 | Y18: 4 | Z18: 2 | AA18: 2 | AB18: 4 | AC18: 4 | AD18: 4 | AE18: 4 | AF18: 4 | AG18: 4 | AH18: 2 | AI18: 4 | AJ18: 4 | AK18: 2 | AL18: 2 | AM18: 4 | AP18: 2 | AS18: 6 | AT18: 140
A19: ОП.03 | B19: Электротехника и электроника | C19: 4 | D19: 4 | E19: 4 | F19: 4 | G19: 4 | H19: 4 | I19: 4 | J19: 2 | K19: 4 | L19: 4 | M19: 4 | N19: 4 | O19: 4 | P19: 4 | Q19: 4 | R19: 4 | S19: 4 | V19: 4 | W19: 4 | X19: 4 | Y19: 4 | Z19: 2 | AA19: 4 | AB19: 4 | AC19: 4 | AD19: 2 | AE19: 4 | AF19: 4 | AG19: 4 | AH19: 4 | AI19: 4 | AJ19: 4 | AK19: 6 | AL19: 4 | AM19: 4 | AP19: 2 | AS19: 6 | AT19: =SUM(C19:AS19) -> 144
A20: ОП.04 | B20: Материаловедение | C20: 2 | D20: 2 | E20: 4 | F20: 2 | G20: 4 | H20: 4 | I20: 2 | J20: 2 | K20: 4 | L20: 2 | M20: 2 | N20: 2 | O20: 2 | P20: 4 | Q20: 2 | R20: 2 | S20: 2 | V20: 2 | W20: 2 | X20: 2 | Y20: 2 | Z20: 4 | AA20: 2 | AB20: 2 | AC20: 2 | AD20: 2 | AE20: 2 | AG20: 2 | AH20: 2 | AI20: 2 | AJ20: 2 | AL20: 2 | AM20: 2 | AP20: 2 | AS20: 2 | AT20: =SUM(C20:AS20) -> 82
A21: ОП.05 | B21: Метрология, стандартизация и сертификация | C21: 2 | D21: 2 | E21: 2 | F21: 2 | G21: 2 | H21: 2 | I21: 2 | J21: 2 | K21: 2 | L21: 2 | M21: 2 | N21: 2 | O21: 2 | P21: 2 | Q21: 2 | R21: 2 | S21: 2 | V21: 2 | X21: 4 | Y21: 2 | Z21: 2 | AA21: 2 | AB21: 4 | AC21: 2 | AD21: 2 | AE21: 4 | AG21: 2 | AH21: 2 | AJ21: 2 | AK21: 2 | AL21: 2 | AM21: 2 | AP21: 2 | AT21: =SUM(C21:AS21) -> 72
A22: ОП.06 | B22: Информационные технологии в профессиональной деятельности | V22: 2 | W22: 2 | X22: 4 | Y22: 4 | Z22: 2 | AA22: 2 | AB22: 4 | AC22: 2 | AD22: 2 | AE22: 2 | AF22: 4 | AG22: 2 | AH22: 6 | AI22: 4 | AJ22: 2 | AK22: 4 | AL22: 2 | AM22: 2 | AP22: 2 | AT22: =SUM(V22:AS22) -> 54
A23: ОП.09 | B23: Правила и безопасность дорожного движения | C23: 2 | D23: 2 | E23: 2 | F23: 2 | G23: 2 | H23: 2 | I23: 2 | J23: 2 | L23: 2 | M23: 2 | N23: 2 | O23: 2 | P23: 2 | Q23: 2 | R23: 2 | V23: 2 | W23: 2 | X23: 2 | Z23: 2 | AA23: 2 | AB23: 2 | AC23: 2 | AD23: 2 | AE23: 2 | AF23: 2 | AG23: 2 | AH23: 2 | AI23: 2 | AK23: 2 | AL23: 2 | AM23: 2 | AP23: 2 | AS23: 6 | AT23: 70
A24: ОП.10 | B24: Предпринимательская деятельность в профессиональной сфере | V24: 2 | W24: 2 | X24: 2 | Y24: 2 | Z24: 2 | AA24: 2 | AB24: 2 | AC24: 2 | AE24: 2 | AF24: 2 | AG24: 2 | AI24: 2 | AJ24: 2 | AK24: 2 | AL24: 2 | AP24: 2 | AT24: 32
A25: ПМ.00 | B25: Профессиональные модули
A26: ПМ.01 | B26: Диагностика, техническое обслуживание и ремонт автотранспортных средств и их компонентов
A27: МДК.01.01 | B27: Устройство автомобилей | C27: 6 | D27: 6 | E27: 6 | F27: 6 | G27: 6 | H27: 6 | I27: 6 | J27: 6 | K27: 6 | L27: 6 | M27: 6 | N27: 6 | O27: 6 | P27: 6 | Q27: 6 | R27: 6 | S27: 6 | V27: 4 | W27: 2 | X27: 4 | Y27: 2 | Z27: 4 | AA27: 2 | AB27: 4 | AC27: 2 | AD27: 4 | AE27: 2 | AF27: 4 | AG27: 2 | AH27: 4 | AI27: 2 | AJ27: 4 | AK27: 8 | AL27: 4 | AM27: 4 | AP27: 4 | AS27: 6 | AT27: =SUM(C27:AS27) -> 174
A28: МДК.01.02 | B28: Технологические процессы технического обслуживания и ремонта автомобилей | C28: 2 | D28: 2 | E28: 2 | F28: 2 | G28: 2 | H28: 2 | I28: 2 | K28: 2 | L28: 2 | M28: 2 | N28: 2 | O28: 2 | P28: 2 | Q28: 2 | R28: 2 | W28: 2 | X28: 2 | Z28: 2 | AA28: 2 | AB28: 2 | AD28: 2 | AE28: 2 | AF28: 2 | AH28: 2 | AI28: 2 | AJ28: 2 | AL28: 2 | AM28: 2 | AP28: 4 | AT28: =SUM(C28:AS28) -> 60
A29: МДК.01.03 | B29: Диагностика, техническое обслуживание и ремонт автомобильных двигателей | V29: 2 | W29: 2 | Y29: 2 | Z29: 2 | AA29: 2 | AC29: 2 | AD29: 2 | AE29: 2 | AG29: 2 | AH29: 2 | AI29: 2 | AK29: 2 | AL29: 2 | AP29: 4 | AT29: =SUM(V29:AS29) -> 30
A30: ПМ.04 | B30: Обеспечение работоспособности средств технического диагностирования, в том числе средств измерений, дополнительного технологического оборудования
A31: МДК.04.01 | B31: Эксплуатация, техническое обслуживание и наладка средств технического диагностирования, в том числе средств измерений, дополнительного технологического оборудования | V31: 4 | W31: 6 | X31: 4 | Y31: 6 | Z31: 6 | AA31: 6 | AB31: 4 | AC31: 6 | AD31: 6 | AE31: 6 | AF31: 6 | AG31: 6 | AH31: 6 | AI31: 6 | AJ31: 6 | AK31: 6 | AL31: 6 | AM31: 6 | AP31: 6 | AT31: =SUM(V31:AS31) -> 108
A32: УП.04.01 | B32: Учебная практика. Эксплуатация средств измерений и технического диагностирования автотранспортных средств | AN32: 36 | AO32: 36 | AT32: =SUM(AM32:AS32) -> 72
A33: ПП.04.01 | B33: Учебная практика. Эксплуатация средств измерений и технического диагностирования автотранспортных средств | AQ33: 36 | AR33: 36 | AT33: =SUM(AQ33:AS33) -> 72
B34: Экзамен по модулю | AS34: 6 | AT34: =SUM(AQ34:AS34) -> 6
A35: Всего часов в неделю учебных занятий | C35: =SUM(C11:C34) -> 36 | D35: =SUM(D11:D34) -> 36 | E35: =SUM(E11:E34) -> 36 | F35: =SUM(F11:F34) -> 36 | G35: =SUM(G11:G34) -> 36 | H35: =SUM(H11:H34) -> 36 | I35: =SUM(I11:I34) -> 36 | J35: =SUM(J11:J34) -> 36 | K35: =SUM(K11:K34) -> 36 | L35: =SUM(L11:L34) -> 36 | M35: =SUM(M11:M34) -> 36 | N35: =SUM(N11:N34) -> 36 | O35: =SUM(O11:O34) -> 36 | P35: =SUM(P11:P34) -> 36 | Q35: =SUM(Q11:Q34) -> 36 | R35: =SUM(R11:R34) -> 36 | S35: =SUM(S11:S34) -> 36 | V35: =SUM(V11:V34) -> 36 | W35: =SUM(W11:W34) -> 36 | X35: =SUM(X11:X34) -> 36 | Y35: =SUM(Y11:Y34) -> 36 | Z35: =SUM(Z11:Z34) -> 36 | AA35: =SUM(AA11:AA34) -> 36 | AB35: =SUM(AB11:AB34) -> 36 | AC35: =SUM(AC11:AC34) -> 36 | AD35: =SUM(AD11:AD34) -> 36 | AE35: =SUM(AE11:AE34) -> 36 | AF35: =SUM(AF11:AF34) -> 36 | AG35: =SUM(AG11:AG34) -> 36 | AH35: =SUM(AH11:AH34) -> 36 | AI35: =SUM(AI11:AI34) -> 36 | AJ35: =SUM(AJ11:AJ34) -> 36 | AK35: =SUM(AK11:AK34) -> 36 | AL35: =SUM(AL11:AL34) -> 36 | AM35: =SUM(AM11:AM34) -> 36 | AN35: =SUM(AN11:AN34) -> 36 | AO35: =SUM(AO11:AO34) -> 36 | AP35: =SUM(AP11:AP34) -> 36 | AQ35: =SUM(AQ11:AQ34) -> 36 | AR35: =SUM(AR11:AR34) -> 36 | AS35: =SUM(AS11:AS34) -> 36 | AT35: =SUM(AT11:AT34) -> 1476

Sheet 3 курс
A3: Индекс | B3: Компоненты программы | C3: 3 курс
C4: 5 семестр | V4: 6 семестр | AU4: Всего часов
C5: ПН | D5: Сентябрь | H5: ПН | I5: Октябрь | L5: ПН | M5: Ноябрь | P5: ПН | Q5: Декабрь | U5: ПН | V5: Январь | Y5: ПН | Z5: Февраль | AC5: ПН | AD5: Март | AH5: ПН | AI5: Апрель | AL5: ПН | AM5: Май | AP5: ПН | AQ5: Июнь
C6: Номера календарных недель
C8: Порядковые номера недель учебного процесса
C9: 1 | D9: 2 | E9: 3 | F9: 4 | G9: 5 | H9: 6 | I9: 7 | J9: 8 | K9: 9 | L9: 10 | M9: 11 | N9: 12 | O9: 13 | P9: 14 | Q9: 15 | R9: 16 | S9: 17 | T9: 18 | U9: 19 | V9: 20 | W9: 21 | X9: 22 | Y9: 23 | Z9: 24 | AA9: 25 | AB9: 26 | AC9: 27 | AD9: 28 | AE9: 29 | AF9: 30 | AG9: 31 | AH9: 32 | AI9: 33 | AJ9: 34 | AK9: 35 | AL9: 36 | AM9: 37 | AN9: 38 | AO9: 39 | AP9: 40 | AQ9: 41 | AR9: 42 | AS9: 43 | AT9: 44
A10: СГ.00 | B10: Социально - гуманитарный цикл
A11: СГ.02 | B11: Иностранный язык в профессиональной деятельности | C11: 2 | D11: 2 | E11: 2 | F11: 2 | G11: 2 | H11: 4 | I11: 4 | P11: 4 | S11: 4 | V11: 2 | W11: 2 | X11: 2 | Y11: 2 | Z11: 2 | AA11: 2 | AB11: 2 | AC11: 2 | AD11: 2 | AE11: 2 | AL11: 2 | AM11: 2 | AO11: 2 | AT11: 2 | AU11: =SUM(C11:AT11) -> 54
A12: СГ.03 | B12: Безопасность жизнедеятельности | V12: 4 | W12: 4 | X12: 4 | Y12: 6 | Z12: 4 | AA12: 4 | AB12: 4 | AC12: 6 | AD12: 4 | AE12: 4 | AK12: 4 | AL12: 4 | AM12: 4 | AN12: 4 | AO12: 4 | AT12: 4 | AU12: =SUM(V12:AT12) -> 68
A13: СГ.04 | B13: Физическая культура | C13: 2 | D13: 2 | E13: 2 | F13: 2 | G13: 2 | H13: 4 | I13: 4 | P13: 4 | S13: 4 | V13: 2 | W13: 2 | X13: 2 | Y13: 2 | Z13: 2 | AA13: 2 | AB13: 2 | AC13: 2 | AD13: 2 | AE13: 2 | AL13: 2 | AM13: 2 | AN13: 2 | AT13: 2 | AU13: =SUM(C13:AT13) -> 54
A14: ПМ.00 | B14: Профессиональные модули
A15: ПМ.01 | B15: Диагностика, техническое обслуживание и ремонт автотранспортных средств и их компонентов
A16: МДК.01.02 | B16: Технологические процессы технического обслуживания и ремонта автомобилей | C16: 4 | D16: 2 | E16: 4 | F16: 2 | G16: 4 | H16: 2 | I16: 2 | P16: 6 | S16: 4 | V16: 4 | W16: 4 | X16: 4 | Y16: 4 | Z16: 4 | AA16: 6 | AB16: 4 | AC16: 4 | AD16: 6 | AE16: 4 | AK16: 4 | AL16: 4 | AM16: 4 | AN16: 4 | AO16: 4 | AT16: 6 | AU16: =SUM(C16:AT16) -> 100
A17: МДК.01.03 | B17: Диагностика, техническое обслуживание и ремонт автомобильных двигателей | C17: 4 | D17: 4 | E17: 4 | F17: 6 | G17: 4 | H17: 4 | I17: 4 | P17: 6 | S17: 4 | V17: 6 | W17: 2 | X17: 6 | Y17: 4 | Z17: 4 | AA17: 2 | AB17: 4 | AC17: 2 | AD17: 4 | AE17: 2 | AK17: 4 | AL17: 4 | AM17: 2 | AN17: 4 | AO17: 4 | AT17: 6 | AU17: =SUM(C17:AT17) -> 100
A18: МДК.01.04 | B18: Диагностика, техническое обслуживание иремонт электрооборудования и электронных систем автомобилей | C18: 6 | D18: 6 | E18: 8 | F18: 8 | G18: 8 | H18: 6 | I18: 6 | P18: 6 | S18: 4 | V18: 8 | W18: 6 | X18: 6 | Y18: 6 | Z18: 6 | AA18: 6 | AB18: 6 | AC18: 6 | AD18: 6 | AE18: 6 | AK18: 4 | AL18: 4 | AM18: 4 | AN18: 4 | AO18: 4 | AT18: 6 | AU18: =SUM(C18:AT18) -> 146
A19: МДК.01.05 | B19: Техническое обслуживание и ремонт шасси автомобилей | C19: 4 | D19: 6 | E19: 6 | F19: 2 | G19: 4 | H19: 4 | I19: 4 | P19: 6 | S19: 2 | V19: 2 | W19: 4 | X19: 2 | Y19: 2 | Z19: 4 | AA19: 2 | AB19: 2 | AC19: 4 | AD19: 2 | AE19: 2 | AK19: 4 | AL19: 2 | AM19: 2 | AN19: 2 | AO19: 4 | AT19: 6 | AU19: =SUM(C19:AT19) -> 84
A20: МДК.01.06 | B20: Ремонт кузовов автомобилей | C20: 6 | D20: 6 | E20: 2 | F20: 6 | G20: 4 | H20: 4 | I20: 6 | P20: 4 | S20: 2 | V20: 2 | W20: 2 | X20: 2 | Y20: 2 | Z20: 2 | AA20: 2 | AB20: 2 | AC20: 2 | AD20: 2 | AE20: 2 | AK20: 2 | AL20: 2 | AM20: 2 | AN20: 2 | AO20: 2 | AT20: 2 | AU20: =SUM(C20:AT20) -> 72
A21: МДК.01.07 | B21: Установка дополнительного оборудования автотранспортных средств | V21: 2 | W21: 2 | X21: 2 | Y21: 2 | Z21: 2 | AA21: 2 | AB21: 2 | AD21: 2 | AE21: 2 | AK21: 2 | AL21: 2 | AM21: 2 | AN21: 2 | AO21: 2 | AT21: 2 | AU21: =SUM(V21:AT21) -> 30
A22: УП.01.01 | B22: Учебная практика. Выполнение работ по диагностике, техническому обслуживанию и ремонту автомобилей, установка | AF22: 36 | AG22: 36 | AH22: 36 | AI22: 36 | AJ22: 36 | AU22: =SUM(V22:AT22) -> 180
A23: ПП.01.01 | B23: Производственная практика. Диагностика, техническое обслуживание и ремонт автомобилей, установка дополнительного оборудования | AP23: 36 | AQ23: 36 | AR23: 36 | AS23: 36 | AU23: =SUM(V23:AT23) -> 144
A24: ПМ.02 | B24: Руководство выполнением работ по техническому обслуживанию и ремонту автотранспортных средств и их компонентов
A25: МДК.02.02 | B25: Управление деятельностью персонала | W25: 2 | X25: 4 | Y25: 2 | AA25: 6 | AB25: 2 | AC25: 2 | AD25: 4 | AE25: 2 | AK25: 6 | AL25: 6 | AM25: 6 | AN25: 6 | AO25: 6 | AU25: =SUM(V25:AT25) -> 54
A26: ПМ.03 | B26: Взаимодействие с потребителями в процессе оказания услуг по техническому обслуживанию и ремонту автотранспортных средств и их компонентов
A27: МДК.03.01 | B27: Организация сервисного обслуживания и работа с клиентами | V27: 4 | W27: 6 | X27: 2 | Y27: 4 | Z27: 6 | AA27: 2 | AB27: 6 | AC27: 6 | AD27: 2 | AE27: 8 | AK27: 6 | AL27: 4 | AM27: 6 | AN27: 6 | AO27: 4 | AU27: =SUM(V27:AT27) -> 72
A28: ПМ. 05 | B28: Выполнение работ по профессии 18511 Слесарь по ремонту автомобилей
A29: МДК.05.01 | B29: Выполнение работ по профессии 18511 Слесарь по ремонту автомобилей | C29: 8 | D29: 8 | E29: 8 | F29: 8 | G29: 8 | H29: 8 | I29: 6 | AU29: =SUM(C29:AT29) -> 54
A30: УП.05.01 | B30: Учебная практика. Выполнение работ по техническому обслуживанию и ремонту автомобилей | J30: 36 | K30: 36 | L30: 36 | M30: 36 | N30: 36 | O30: 36 | AU30: =SUM(C30:AT30) -> 216
A31: ПП.05.01 | B31: Производственная практика. Техническое обслуживание и ремонт автомобилей | Q31: 36 | R31: 36 | AU31: =SUM(C31:AT31) -> 72
B32: Квалификационнывй экзамен | S32: 12 | AU32: =SUM(C32:AT32) -> 12
A33: Всего часов в неделю учебных занятий | C33: 36 | D33: 36 | E33: 36 | F33: 36 | G33: 36 | H33: 36 | I33: 36 | J33: 36 | K33: 36 | L33: 36 | M33: 36 | N33: 36 | O33: 36 | P33: 36 | Q33: 36 | R33: 36 | S33: 36 | V33: 36 | W33: 36 | X33: 36 | Y33: 36 | Z33: 36 | AA33: 36 | AB33: 36 | AC33: 36 | AD33: 36 | AE33: 36 | AF33: 36 | AG33: 36 | AH33: 36 | AI33: 36 | AJ33: 36 | AK33: 36 | AL33: 36 | AM33: 36 | AN33: 36 | AO33: 36 | AP33: 36 | AQ33: 36 | AR33: 36 | AS33: 36 | AT33: 36 | AU33: 1512

Sheet 4 курс
A3: Индекс | B3: Компоненты программы | C3: 4 курс
C4: 7 семестр | V4: 8 семестр | AT4: Всего часов
C5: ПН | D5: Сентябрь | H5: ПН | I5: Октябрь | L5: ПН | M5: Ноябрь | P5: ПН | Q5: Декабрь | U5: ПН | V5: Январь | Y5: ПН | Z5: Февраль | AC5: ПН | AD5: Март | AH5: ПН | AI5: Апрель | AL5: ПН | AM5: Май | AP5: ПН | AQ5: Июнь
C6: Номера календарных недель
C8: Порядковые номера недель учебного процесса
C9: 1 | D9: 2 | E9: 3 | F9: 4 | G9: 5 | H9: 6 | I9: 7 | J9: 8 | K9: 9 | L9: 10 | M9: 11 | N9: 12 | O9: 13 | P9: 14 | Q9: 15 | R9: 16 | S9: 17 | T9: 18 | U9: 19 | V9: 20 | W9: 21 | X9: 22 | Y9: 23 | Z9: 24 | AA9: 25 | AB9: 26 | AC9: 27 | AD9: 28 | AE9: 29 | AF9: 30 | AG9: 31 | AH9: 32 | AI9: 33 | AJ9: 34 | AK9: 35 | AL9: 36 | AM9: 37 | AN9: 38 | AO9: 39 | AP9: 40 | AQ9: 41 | AR9: 42 | AS9: 43
A10: СГ.00 | B10: Социально - гуманитарный цикл | AT10: =SUM(C10:AS10) -> 0
A11: СГ.02 | B11: Иностранный язык в профессиональной деятельности | C11: 2 | D11: 2 | E11: 2 | F11: 2 | G11: 2 | H11: 2 | I11: 2 | M11: 4 | N11: 4 | S11: 2 | V11: 4 | W11: 4 | X11: 4 | Y11: 2 | Z11: 2 | AE11: 2 | AF11: 2 | AG11: 4 | AM11: 2 | AT11: =SUM(C11:AS11) -> 50
A12: СГ.04 | B12: Физическая культура | C12: 2 | D12: 2 | E12: 2 | F12: 2 | G12: 2 | H12: 2 | I12: 2 | M12: 4 | N12: 4 | S12: 2 | V12: 4 | W12: 4 | X12: 4 | Y12: 2 | Z12: 2 | AE12: 2 | AF12: 4 | AG12: 2 | AM12: 2 | AT12: 50
A13: ОП | B13: Общепрофессиональный цикл | AT13: 0
A14: ОП.07 | B14: Правое обеспечение профессиональной деятельности | V14: 4 | W14: 4 | X14: 4 | Y14: 8 | Z14: 8 | AE14: 8 | AF14: 6 | AG14: 6 | AM14: 6 | AT14: =SUM(V14:AS14) -> 54
A15: ОП.08 | B15: Охрана труда | C15: 4 | D15: 4 | E15: 4 | F15: 4 | G15: 4 | H15: 4 | I15: 4 | M15: 2 | N15: 2 | S15: 4 | AT15: 36
A16: ПМ.00 | B16: Профессиональные модули | AT16: 0
A17: ПМ.01 | B17: Диагностика, техническое обслуживание и ремонт автотранспортных средств и их компонентов | AT17: 0
A18: МДК.01.07 | B18: Установка дополнительного оборудования автотранспортных средств | C18: 4 | D18: 4 | E18: 4 | F18: 4 | G18: 4 | H18: 4 | I18: 8 | M18: 2 | N18: 2 | S18: 6 | AT18: 42
A19: УП.01.01 | B19: Учебная практика. Выполнение работ по диагностике, техническому обслуживанию и ремонту автомобилей, установка | J19: 36 | K19: 36 | AT19: =SUM(C19:AS19) -> 72
A20: ПП.01.01 | B20: Производственная практика. Диагностика, техническое обслуживание и ремонт автомобилей, установка дополнительного оборудования | O20: 36 | P20: 36 | Q20: 36 | AT20: 108
B21: Экзамен по модулю | S21: 6 | AT21: 6
A22: ПМ.02 | B22: Руководство выполнением работ по техническому обслуживанию и ремонту автотранспортных средств и их компонентов | AT22: 0
A23: МДК.02.01 | B23: Управление процессом технического обслуживания и ремонта автотранспортных средств и их компонентов | C23: 4 | D23: 4 | E23: 4 | F23: 4 | G23: 4 | H23: 6 | I23: 4 | M23: 4 | N23: 4 | S23: 4 | V23: 14 | W23: 14 | X23: 14 | Y23: 14 | Z23: 14 | AE23: 14 | AF23: 14 | AG23: 14 | AM23: 6 | AT23: =SUM(C23:AS23) -> 160
A24: МДК.02.03 | B24: Управленческая и техническая документация | C24: 6 | D24: 6 | E24: 4 | F24: 4 | G24: 4 | H24: 6 | I24: 6 | M24: 6 | N24: 6 | S24: 6 | AT24: =SUM(C24:AS24) -> 54
A25: УП.02.01 | B25: Учебная практика. Организация процесса технического обслуживания и ремонта автотранспортных средств. Составление управленческой и технической документации | L25: 36 | AA25: 36 | AB25: 36 | AT25: =SUM(C25:AS25) -> 108
A26: ПП.02.01 | B26: Производственная практика. Организация процесса технического обслуживания и ремонта автотранспортных средств. Составление управленческой и технической документации | R26: 36 | AH26: 36 | AI26: 36 | AT26: =SUM(C26:AS26) -> 108
B27: Экзамен по модулю | AM27: 6 | AT27: =SUM(V27:AS27) -> 6
A28: ПМ.03 | B28: Взаимодействие с потребителями в процессе оказания услуг по техническому обслуживанию и ремонту автотранспортных средств и их компонентов
A29: МДК.03.01 | B29: Организация сервисного обслуживания и работа с клиентами | C29: 10 | D29: 10 | E29: 10 | F29: 10 | G29: 10 | H29: 10 | I29: 10 | M29: 8 | N29: 8 | S29: 6 | AT29: 92
A30: МДК.03.02 | B30: Коммуникации с потребителями и поставщиками по вопросам сервиса автотранспортных средств | C30: 4 | D30: 4 | E30: 6 | F30: 6 | G30: 6 | H30: 2 | M30: 6 | N30: 6 | V30: 10 | W30: 10 | X30: 10 | Y30: 10 | Z30: 10 | AE30: 10 | AF30: 10 | AG30: 10 | AM30: 8 | AT30: 128
A31: УП.03.01 | B31: Учебная практика. Организация сервисного обслуживания и ремонта автотранспортных средств
AC32: 36 | AD32: 36 | AT32: =SUM(V32:AS32) -> 72
A33: ПП.03.01 | B33: Производственная практика. Взаимодействие с поставщиками и потребителями в процессе оказания услуг по техническому обслуживанию и ремонту автотранспортных средств и их компонентов | AJ33: 36 | AK33: 36 | AL33: 36 | AT33: =SUM(V33:AS33) -> 108
B34: Экзамен по модулю | AM34: 6 | AT34: 6
B35: Государственная итоговая аттестация | AN35: 36 | AO35: 36 | AP35: 36 | AQ35: 36 | AR35: 36 | AS35: 36 | AT35: 216
A36: Всего часов в неделю учебных занятий | C36: =SUM(C10:C35) -> 36 | D36: =SUM(D10:D35) -> 36 | E36: =SUM(E10:E35) -> 36 | F36: =SUM(F10:F35) -> 36 | G36: =SUM(G10:G35) -> 36 | H36: =SUM(H10:H35) -> 36 | I36: =SUM(I10:I35) -> 36 | J36: =SUM(J10:J35) -> 36 | K36: =SUM(K10:K35) -> 36 | L36: =SUM(L10:L35) -> 36 | M36: =SUM(M10:M35) -> 36 | N36: =SUM(N10:N35) -> 36 | O36: =SUM(O10:O35) -> 36 | P36: =SUM(P10:P35) -> 36 | Q36: =SUM(Q10:Q35) -> 36 | R36: =SUM(R10:R35) -> 36 | S36: =SUM(S10:S35) -> 36 | T36: =SUM(T10:T35) -> 0 | U36: =SUM(U10:U35) -> 0 | V36: =SUM(V10:V35) -> 36 | W36: =SUM(W10:W35) -> 36 | X36: =SUM(X10:X35) -> 36 | Y36: =SUM(Y10:Y35) -> 36 | Z36: =SUM(Z10:Z35) -> 36 | AA36: =SUM(AA10:AA35) -> 36 | AB36: =SUM(AB10:AB35) -> 36 | AC36: =SUM(AC10:AC35) -> 36 | AD36: =SUM(AD10:AD35) -> 36 | AE36: =SUM(AE10:AE35) -> 36 | AF36: =SUM(AF10:AF35) -> 36 | AG36: =SUM(AG10:AG35) -> 36 | AH36: =SUM(AH10:AH35) -> 36 | AI36: =SUM(AI10:AI35) -> 36 | AJ36: =SUM(AJ10:AJ35) -> 36 | AK36: =SUM(AK10:AK35) -> 36 | AL36: =SUM(AL10:AL35) -> 36 | AM36: =SUM(AM10:AM35) -> 36 | AN36: =SUM(AN10:AN35) -> 36 | AO36: =SUM(AO10:AO35) -> 36 | AP36: =SUM(AP10:AP35) -> 36 | AQ36: =SUM(AQ10:AQ35) -> 36 | AR36: =SUM(AR10:AR35) -> 36 | AS36: =SUM(AS10:AS35) -> 36 | AT36: =SUM(AT10:AT35) -> 1476
